bitfinex-derivatives/quotes_ETHF0:USTF0_20240917
["timestamp","ask_amount","ask_price","bid_price","bid_amount"]
[1726531202216,0.4015,2297.3,2297.0,0.3845]
[1726531203018,0.4015,2297.3,2297.0,4.7415]
[1726531203713,0.4206,2297.4,2297.0,4.7415]
[1726531210115,3.2078,2297.6,2297.0,4.7415]
[1726531210316,3.588,2297.6,2297.0,4.7415]
[1726531211020,3.588,2297.6,2297.1,1.13554136]
[1726531211216,3.2078,2297.6,2297.2,1.53284136]
[1726531211524,3.2078,2297.6,2297.3,0.3943]
[1726531212320,0.8029,2297.5,2297.0,5.49254136]
[1726531212519,0.8029,2297.5,2297.1,0.7993]
[1726531213821,0.4044,2297.5,2297.2,4.357]
[1726531214017,0.4044,2297.5,2297.3,0.4119]
[1726531214216,0.4044,2297.5,2297.4,0.3936]
[1726531214416,0.4044,2297.5,2297.4,5.1629]
[1726531215221,4.7572,2297.5,2297.4,4.357]
[1726531215425,4.7572,2297.5,2297.2,4.357]
[1726531215614,0.4044,2297.5,2297.2,4.357]
[1726531217732,0.4044,2297.5,2297.3,0.4194]
[1726531218029,0.4044,2297.5,2297.4,0.3942]
[1726531218325,0.4044,2297.5,2297.4,0.7911]
[1726531219130,4.7572,2297.5,2297.4,0.7911]
[1726531219324,0.4044,2297.5,2297.4,0.7911]
[1726531219522,3.2078,2297.7,2297.4,0.7911]
[1726531221229,0.3931,2297.6,2297.4,0.7911]
[1726531221927,4.3528,2297.5,2297.1,4.34334136]
[1726531222125,0.7975,2297.5,2297.2,0.3801]
[1726531222832,3.2078,2297.3,2297.1,0.397]
[1726531223333,0.3949,2297.2,2297.1,0.397]
[1726531225928,4.7485,2297.2,2297.1,0.397]
[1726531226134,4.7485,2297.2,2296.9,0.3817]
[1726531226329,0.8223,2297.1,2296.9,0.3817]
[1726531229327,4.3536,2297.0,2296.7,0.3937]
[1726531229527,2.0723,2297.1,2296.8,0.4023]
[1726531230338,0.43534,2297.0,2296.8,0.4023]
[1726531231034,0.4058,2296.9,2296.8,0.4023]
[1726531231228,0.84114,2296.9,2296.8,0.4023]
[1726531231431,0.84114,2296.9,2296.4,3.2078]
[1726531231432,1.6558,2296.9,2296.4,3.2078]
[1726531231633,1.68538,2296.8,2296.5,0.8336]
[1726531231836,0.43538,2296.7,2296.5,0.8336]
[1726531232334,0.85138,2296.7,2296.5,0.8336]
[1726531232933,0.416,2296.7,2296.5,0.8336]
[1726531234030,0.43537,2296.8,2296.5,0.8336]
[1726531237034,1.25,2296.7,2296.5,0.8336]
[1726531237235,0.43542,2296.5,2295.8,2.8388534]
[1726531237434,0.43542,2296.5,2295.4,3.97439477]
[1726531237435,3.2078,2295.9,2295.6,1.25]
[1726531237639,3.2078,2296.3,2295.7,1.66]
[1726531237833,3.2078,2296.3,2295.9,1.25]
[1726531238036,3.2078,2296.3,2296.0,0.8174]
[1726531238336,4.4578,2296.3,2296.1,0.3148]
[1726531238943,3.2078,2296.3,2296.1,0.3148]
[1726531240034,4.4578,2296.3,2296.1,0.3148]
[1726531241441,3.2078,2296.3,2296.1,0.3148]
[1726531241635,3.2078,2296.3,2296.2,1.25]
[1726531241950,3.2078,2296.3,2296.1,0.3148]
[1726531241951,3.2078,2296.3,2296.1,1.5648]
[1726531243750,3.2078,2296.3,2296.1,0.3148]
[1726531248742,3.2078,2296.2,2296.1,0.3148]
[1726531251349,3.2078,2296.2,2296.0,0.8174]
[1726531251350,8.813,2296.2,2296.0,0.4104]
[1726531251556,5.17729,2296.1,2296.0,0.4104]
[1726531252044,3.64328,2296.2,2296.0,0.4104]
[1726531252245,3.2078,2296.2,2296.0,1.6604]
[1726531252445,3.2078,2296.2,2296.1,0.781]
[1726531253448,7.563,2296.2,2296.0,0.4104]
[1726531253645,0.4034,2296.1,2296.0,0.4104]
[1726531255454,0.83889,2296.1,2296.0,0.4104]
[1726531255650,2.08889,2296.1,2296.0,0.4104]
[1726531256155,0.43553,2296.0,2295.8,0.4142]
[1726531256354,3.2078,2295.9,2295.8,0.4142]
[1726531256755,3.64333,2295.9,2295.8,0.4142]
[1726531257157,3.2078,2295.9,2295.8,0.4142]
[1726531257556,3.2078,2296.2,2295.8,1.6642]
[1726531257763,3.2078,2296.2,2295.9,1.25]
[1726531258063,3.2078,2296.2,2296.0,0.4138]
[1726531258255,3.2078,2296.2,2296.1,1.6499]
[1726531258554,3.2078,2296.2,2296.1,0.7919]
[1726531260456,0.43549,2296.1,2296.0,0.4138]
[1726531260763,0.83839,2296.1,2296.0,0.4138]
[1726531261260,0.4029,2296.1,2296.0,0.4138]
[1726531261560,4.4578,2296.2,2296.0,0.4138]
[1726531261561,3.64329,2296.2,2296.0,0.4138]
[1726531262154,0.43549,2296.1,2296.0,0.4138]
[1726531264950,3.64328,2296.2,2296.0,0.4138]
[1726531265257,3.2078,2296.2,2296.1,0.43549]
[1726531265462,3.2078,2296.2,2296.1,1.21039]
[1726531266163,3.2078,2296.2,2296.1,0.7749]
[1726531266762,3.2078,2296.2,2296.1,1.21039]
[1726531267058,3.2078,2296.2,2296.1,0.7749]
[1726531267263,3.2078,2296.2,2296.1,0.3817]
[1726531268260,3.2078,2296.2,2296.0,0.84931]
[1726531269065,3.2078,2296.2,2296.0,0.8493]
[1726531269456,3.64328,2296.2,2296.0,0.4138]
[1726531269959,3.64328,2296.2,2296.0,0.84931]
[1726531269960,3.2078,2296.2,2296.0,0.84931]
[1726531270656,3.2078,2296.2,2296.1,0.43549]
[1726531270852,3.2078,2296.2,2296.1,0.4152]
[1726531271062,3.2078,2296.2,2296.1,0.85069]
[1726531271258,2.5744,2296.2,2296.1,5.20589]
[1726531271557,3.2078,2296.5,2296.4,0.43544]
[1726531274568,3.2078,2296.5,2296.4,0.82344]
[1726531278968,3.2078,2296.5,2296.2,0.4218]
[1726531279264,3.64323,2296.5,2296.2,1.26277]
[1726531279457,3.64323,2296.5,2296.2,0.8273]
[1726531279660,3.2078,2296.5,2296.2,0.8273]
[1726531279864,3.6107,2296.5,2296.2,0.8273]
[1726531280162,4.04613,2296.5,2296.2,0.8273]
[1726531280766,4.04613,2296.5,2296.2,1.26277]
[1726531281269,4.04613,2296.5,2296.2,0.8273]
[1726531281270,4.04614,2296.5,2296.2,0.8273]
[1726531281464,0.43544,2296.4,2296.2,0.8273]
[1726531281664,3.6107,2296.5,2296.2,0.8273]
[1726531282164,4.04612,2296.5,2296.2,0.8273]
[1726531282570,3.6107,2296.5,2296.2,0.8273]
[1726531282771,3.6107,2296.5,2296.2,1.26277]
[1726531283771,3.64322,2296.5,2296.2,4.66276]
[1726531284274,3.64322,2296.5,2296.2,4.2273]
[1726531284666,3.2078,2296.5,2296.2,4.2273]
[1726531284866,3.2078,2296.5,2296.2,0.8273]
[1726531285067,0.7979,2296.4,2296.2,0.8273]
[1726531285274,1.23335,2296.4,2296.2,0.8273]
[1726531285965,0.7979,2296.4,2296.2,0.8273]
[1726531286670,0.3839,2296.4,2296.2,0.8273]
[1726531286870,3.64322,2296.5,2296.2,0.8273]
[1726531287573,3.2078,2296.5,2296.2,0.8273]
[1726531288172,3.2078,2296.5,2296.4,3.4]
[1726531289168,4.0213,2296.9,2296.4,3.4]
[1726531289369,4.0213,2296.9,2296.5,0.831]
[1726531289671,4.0213,2296.9,2296.6,0.4056]
[1726531289869,3.6123,2296.9,2296.6,0.4056]
[1726531297978,3.4,2296.7,2296.1,3.3088]
[1726531298193,3.2078,2296.5,2296.2,0.8252]
[1726531298484,0.3978,2296.4,2296.2,0.8252]
[1726531298685,0.8032,2296.4,2296.2,0.8252]
[1726531300074,0.4054,2296.4,2296.2,0.8252]
[1726531300787,3.2078,2296.5,2296.2,0.8252]
[1726531301381,0.7771,2296.4,2296.2,0.8252]
[1726531301686,0.3877,2296.3,2296.2,0.8252]
[1726531306284,3.2078,2296.5,2296.2,0.8252]
[1726531306992,3.2078,2296.5,2296.2,4.2252]
[1726531311082,3.2078,2296.5,2296.2,0.8252]
[1726531311286,0.3968,2296.4,2296.2,0.8252]
[1726531311487,0.3977,2296.3,2296.2,0.8252]
[1726531311683,0.3977,2296.3,2296.2,0.4159]
[1726531311890,0.8197,2296.3,2296.2,0.4159]
[1726531312685,0.3977,2296.3,2296.2,0.4159]
[1726531313090,3.6298,2296.5,2296.2,0.4159]
[1726531313281,3.6298,2296.5,2296.3,0.4067]
[1726531313487,4.06522,2296.5,2296.3,0.4067]
[1726531315188,3.6298,2296.5,2296.3,0.4067]
[1726531315383,3.2078,2296.5,2296.3,0.4067]
[1726531315895,3.64322,2296.5,2296.3,0.4067]
[1726531316085,4.04042,2296.5,2296.3,0.4067]
[1726531318996,0.43544,2296.4,2296.2,0.4159]
[1726531319191,0.4204,2296.3,2296.2,0.4159]
[1726531319396,0.8102,2296.3,2296.2,0.4159]
[1726531319788,1.24566,2296.3,2296.2,0.4159]
[1726531319996,0.8102,2296.3,2296.2,0.4159]
[1726531320696,2.3802,2296.3,2296.0,0.3807]
[1726531320889,3.5979,2296.2,2296.0,0.3807]
[1726531321394,0.4204,2296.3,2296.0,0.81621]
[1726531321590,0.4204,2296.3,2296.1,0.43549]
[1726531321794,0.4204,2296.3,2296.0,0.8162]
[1726531321997,3.594,2296.5,2296.2,3.4]
[1726531322198,3.2078,2296.5,2296.3,1.23775]
[1726531322496,3.2078,2296.5,2296.4,0.3813]
[1726531325098,3.2078,2296.5,2296.4,0.81674]
[1726531328695,3.2078,2296.5,2296.4,4.21674]
[1726531330005,3.2078,2296.5,2296.4,0.81674]
[1726531338501,3.2078,2296.5,2296.4,5.17114]
[1726531341203,4.152,2296.9,2296.8,0.43536]
[1726531341395,0.82312,2297.0,2296.8,0.43536]
[1726531342307,0.3878,2297.0,2296.9,2.00534]
[1726531342497,3.2078,2297.1,2297.0,0.43532]
[1726531342699,3.2078,2297.1,2297.0,0.82422]
[1726531342895,3.2078,2297.1,2297.0,1.23792]
[1726531343306,0.3878,2297.3,2297.1,0.43529]
[1726531343702,0.82307,2297.3,2297.1,0.43529]
[1726531344602,0.3878,2297.3,2297.1,0.43529]
[1726531344796,0.3878,2297.3,2297.2,0.43529]
[1726531344999,0.3878,2297.3,2297.0,0.8026]
[1726531345000,3.2078,2297.4,2297.1,3.7812]
[1726531345197,3.2078,2297.4,2297.2,0.43528]
[1726531345409,3.2078,2297.4,2297.3,0.43527]
[1726531345802,3.2078,2297.4,2297.2,0.43528]
[1726531346803,3.2078,2297.4,2297.3,0.43527]
[1726531358118,3.2078,2297.4,2297.3,3.83527]
[1726531361923,3.2078,2297.4,2297.3,4.23247]
[1726531362621,4.152,2297.8,2297.7,0.43519]
[1726531362817,3.6109,2297.9,2297.8,0.43517]
[1726531363023,3.6109,2297.9,2297.8,0.85237]
[1726531363221,3.6109,2297.9,2297.8,1.25307]
[1726531365615,3.6109,2297.9,2297.8,0.43517]
[1726531366526,3.9981,2297.9,2297.8,0.43517]
[1726531367822,3.6109,2297.9,2297.8,0.43517]
[1726531368022,3.6109,2297.9,2297.8,0.82957]
[1726531368337,3.6109,2297.9,2297.8,0.43517]
[1726531370033,3.2078,2297.9,2297.8,0.81757]
[1726531370331,4.4397,2298.3,2298.1,0.4351]
[1726531370523,4.4397,2298.3,2298.1,2.0051]
[1726531370829,4.0223,2298.3,2298.1,1.57]
[1726531371027,0.8145,2298.3,2298.2,2.3875]
[1726531371227,3.6265,2298.3,2298.2,2.3875]
[1726531372017,3.6265,2298.3,2298.2,0.8175]
[1726531372227,3.2078,2298.3,2298.2,0.8175]
[1726531372435,3.2078,2298.3,2298.2,1.2289]
[1726531372629,3.2078,2298.3,2298.2,1.6379]
[1726531374335,3.2078,2298.3,2298.1,0.43511]
[1726531374528,3.2078,2298.3,2298.1,0.43512]
[1726531374529,0.405,2298.2,2298.1,0.43512]
[1726531374727,0.7893,2298.2,2298.1,0.43512]
[1726531374927,0.7893,2298.2,2297.7,3.2078]
[1726531375128,0.3879,2298.1,2298.0,0.43513]
[1726531376039,0.3879,2298.1,2297.7,3.4]
[1726531376228,0.3879,2298.1,2298.0,0.43513]
[1726531379238,0.3879,2298.1,2298.0,0.82633]
[1726531379439,0.3879,2298.1,2298.0,1.62333]
[1726531381728,3.2078,2298.3,2298.2,0.4351]
[1726531382136,3.2078,2298.3,2298.2,3.8351]
[1726531383235,3.2078,2298.3,2298.2,8.1863]
[1726531383436,0.3908,2298.6,2298.5,0.43504]
[1726531383641,7.3598,2298.8,2298.4,3.4]
[1726531383935,3.6151,2298.8,2298.6,0.43501]
[1726531384141,3.2078,2298.8,2298.7,0.435]
[1726531384447,3.2078,2298.8,2298.7,0.8565]
[1726531386839,3.2078,2298.8,2298.7,5.2069]
[1726531387040,3.2078,2298.8,2298.7,0.8565]
[1726531387233,3.2078,2298.8,2298.7,5.2069]
[1726531389345,0.4073,2299.0,2298.9,0.43496]
[1726531389539,3.6151,2299.0,2298.9,0.43496]
[1726531390336,3.2078,2299.0,2298.9,0.82146]
[1726531392247,3.2078,2299.0,2298.9,0.43496]
[1726531392546,3.2078,2299.0,2298.6,0.4209]
[1726531392547,7.5574,2299.0,2298.6,0.4209]
[1726531392751,7.5574,2299.0,2298.3,0.53607]
[1726531392752,3.2078,2298.7,2298.3,0.53607]
[1726531393045,3.2078,2298.4,2298.0,0.101]
[1726531393243,3.2078,2298.4,2298.2,0.43509]
[1726531394038,0.3961,2298.6,2298.4,0.43505]
[1726531394635,0.3961,2298.6,2298.5,0.43504]
[1726531394836,0.3961,2298.6,2298.3,3.4]
[1726531395046,0.3961,2298.6,2298.4,0.43504]
[1726531396446,0.3961,2298.6,2298.4,0.85294]
[1726531397941,0.3961,2298.6,2298.1,3.4]
[1726531398150,0.3961,2298.6,2298.4,0.43505]
[1726531400059,0.3961,2298.6,2298.5,0.43504]
[1726531401964,0.3961,2298.6,2298.5,0.83964]
[1726531403258,3.2078,2298.7,2298.6,0.43502]
[1726531403452,3.6226,2298.7,2298.6,0.43502]
[1726531406262,3.6226,2298.7,2298.3,0.3869]
[1726531406462,3.6226,2298.7,2298.1,3.4]
[1726531406463,3.2078,2298.4,2298.1,3.4]
[1726531406756,0.3903,2298.3,2298.2,0.4351]
[1726531419872,3.2078,2298.4,2298.3,0.43508]
[1726531420081,3.2078,2298.4,2298.3,0.84768]
[1726531420376,3.2078,2298.4,2298.3,1.23498]
[1726531421175,7.99406,2298.4,2298.3,0.82238]
[1726531421374,7.559,2298.4,2298.3,0.82238]
[1726531421966,3.2078,2298.4,2298.3,0.82238]
[1726531432779,3.2078,2298.4,2298.3,2.39238]
[1726531433985,0.4107,2298.6,2298.5,0.43504]
[1726531434377,4.7611,2298.6,2298.5,0.43504]
[1726531440587,4.7611,2298.6,2298.3,0.3873]
[1726531440785,3.64285,2298.5,2298.3,0.82236]
[1726531440985,0.3868,2298.4,2298.3,0.82236]
[1726531441189,0.7839,2298.4,2298.3,0.82236]
[1726531441690,6.7051,2298.4,2298.1,0.421]
[1726531441885,3.2078,2298.2,2298.0,0.43513]
[1726531442083,3.2078,2298.2,2298.1,0.43512]
[1726531448602,3.6429,2298.2,2297.9,0.4133]
[1726531448803,0.4195,2298.1,2298.0,0.43513]
[1726531449894,3.64285,2298.5,2298.2,0.43509]
[1726531450093,3.64285,2298.5,2298.3,0.4084]
[1726531450094,4.06235,2298.5,2298.3,0.4084]
[1726531451594,4.47355,2298.5,2298.3,0.4084]
[1726531452498,0.43506,2298.4,2298.3,0.4084]
[1726531452698,5.6085,2298.5,2298.2,0.4218]
[1726531453093,0.43506,2298.4,2298.2,0.4218]
[1726531453700,5.6085,2298.5,2298.2,0.4218]
[1726531454003,0.43506,2298.4,2298.2,0.4218]
[1726531454208,0.43506,2298.4,2298.0,0.81552]
[1726531454209,0.43508,2298.4,2298.0,0.81552]
[1726531454403,0.43508,2298.3,2298.0,0.81552]
[1726531454708,0.43507,2298.4,2298.1,0.43512]
[1726531458200,0.43508,2298.3,2298.1,0.43512]
[1726531459911,0.43507,2298.4,2298.1,0.43512]
[1726531460310,0.43508,2298.3,2298.1,0.43512]
[1726531461710,0.43507,2298.4,2298.1,0.43512]
[1726531461905,0.43507,2298.4,2298.2,0.43509]
[1726531462204,0.43508,2298.3,2298.1,0.4351]
[1726531464409,0.43507,2298.4,2298.1,0.43512]
[1726531464805,0.43507,2298.4,2298.2,0.43509]
[1726531465008,0.43508,2298.3,2298.2,0.43509]
[1726531465604,0.43507,2298.4,2298.2,0.43509]
[1726531466506,6.04355,2298.5,2298.3,0.43508]
[1726531466703,3.6273,2298.5,2298.4,0.43506]
[1726531466907,3.2078,2298.5,2298.4,0.43506]
[1726531467105,4.556,2298.9,2298.7,0.43499]
[1726531467408,0.404,2298.9,2298.7,0.43499]
[1726531468817,0.404,2298.9,2298.8,0.4075]
[1726531470214,3.2078,2299.1,2298.8,0.84248]
[1726531470413,3.2078,2299.1,2299.0,1.57]
[1726531471115,3.2078,2299.1,2298.9,0.85006]
[1726531471507,3.2078,2299.1,2298.9,0.4151]
[1726531471917,3.2078,2299.1,2298.9,0.85006]
[1726531472822,3.2078,2299.1,2298.9,0.4151]
[1726531473121,3.2078,2299.1,2298.9,0.85006]
[1726531474015,3.64273,2299.1,2298.9,0.4151]
[1726531475710,0.43494,2299.0,2298.8,0.84248]
[1726531475913,0.43494,2299.0,2298.8,0.4075]
[1726531476116,0.43494,2299.0,2298.8,0.84248]
[1726531476823,0.43494,2299.0,2298.8,0.4075]
[1726531477519,0.43494,2299.0,2298.8,0.84248]
[1726531477917,0.43494,2299.0,2298.8,0.4075]
[1726531478513,0.43494,2299.0,2298.8,0.84248]
[1726531480117,0.43494,2299.0,2298.8,0.4075]
[1726531483223,0.43495,2299.0,2298.8,1.9775]
[1726531483631,0.43495,2299.0,2298.8,0.4075]
[1726531484315,0.43495,2299.0,2298.9,0.4086]
[1726531486123,3.64275,2299.0,2298.9,0.4086]
[1726531488027,0.43495,2299.0,2298.9,0.4086]
[1726531488234,3.64275,2299.0,2298.9,0.4086]
[1726531489724,0.43496,2298.9,2298.8,0.4075]
[1726531489933,1.25996,2298.9,2298.8,0.4075]
[1726531490435,0.43498,2298.8,2298.6,1.9782]
[1726531490628,0.43498,2298.8,2298.6,2.3854]
[1726531491029,0.43498,2298.8,2298.6,2.82042]
[1726531498936,0.84517,2298.9,2298.7,0.435]
[1726531500428,0.4102,2298.9,2298.8,1.57]
[1726531500632,3.2078,2299.0,2298.9,0.43496]
[1726531500931,3.2078,2299.0,2298.9,0.83606]
[1726531501132,3.2078,2299.0,2298.9,1.24836]
[1726531501328,3.2078,2299.0,2298.9,2.81836]
[1726531501540,3.5894,2299.3,2298.9,2.3834]
[1726531501846,3.6427,2299.3,2299.1,1.57]
[1726531502038,3.2078,2299.3,2299.1,1.57]
[1726531502242,4.152,2299.4,2299.2,2.40761]
[1726531502447,0.43486,2299.5,2299.3,0.4123]
[1726531502739,0.43489,2299.3,2299.2,0.4027]
[1726531502932,3.2078,2299.3,2299.2,0.4027]
[1726531503136,3.2078,2299.3,2299.2,2.40761]
[1726531507256,3.2078,2299.3,2299.2,0.83761]
[1726531507639,3.2078,2299.3,2299.2,1.62711]
[1726531507837,3.2078,2299.3,2299.2,3.19711]
[1726531509547,3.2078,2299.3,2299.2,7.54671]
[1726531509746,4.0041,2299.7,2299.5,0.43485]
[1726531509949,4.0041,2299.7,2299.6,0.3969]
[1726531509950,4.43892,2299.7,2299.6,0.3969]
[1726531510341,0.43484,2299.6,2299.2,2.3595]
[1726531510548,0.82354,2299.6,2299.4,0.43487]
[1726531510743,0.82355,2299.6,2299.4,0.43487]
[1726531511150,0.3887,2299.6,2299.4,0.43487]
[1726531511453,0.3887,2299.6,2299.4,0.43486]
[1726531512549,0.3887,2299.6,2299.3,0.3969]
[1726531512846,0.3887,2299.6,2299.4,0.43487]
[1726531513550,0.3887,2299.6,2299.2,0.3898]
[1726531513551,4.3488,2299.5,2299.2,0.3898]
[1726531513744,5.21268,2299.4,2299.2,0.3898]
[1726531513943,0.3922,2299.3,2299.2,0.3898]
[1726531514339,0.82709,2299.3,2299.2,0.3898]
[1726531514548,0.3922,2299.3,2299.2,0.3898]
[1726531515053,0.795,2299.3,2299.2,0.3898]
[1726531515548,5.1446,2299.3,2299.0,0.3825]
[1726531515749,3.2078,2299.1,2299.0,0.3825]
[1726531516544,3.2078,2299.1,2299.0,0.81744]
[1726531516840,3.2078,2299.2,2299.0,0.81744]
[1726531517051,1.2087,2299.3,2299.0,0.81744]
[1726531517240,3.2078,2299.2,2299.0,0.3825]
[1726531517646,3.64271,2299.2,2299.0,0.3825]
[1726531518052,5.21271,2299.2,2299.0,0.3825]
[1726531519449,0.43493,2299.1,2299.0,0.3825]
[1726531519652,0.43495,2299.0,2298.8,0.4003]
[1726531519858,5.9196,2299.1,2298.8,0.83528]
[1726531519859,3.2078,2298.9,2298.8,0.83528]
[1726531520060,0.43493,2299.1,2298.8,0.83528]
[1726531520358,0.43493,2299.1,2298.8,0.4003]
[1726531520553,2.42353,2299.1,2298.8,0.4003]
[1726531520748,3.2078,2298.9,2298.8,0.4003]
[1726531521151,3.2078,2299.2,2299.0,0.43493]
[1726531521454,3.2078,2299.2,2299.1,0.4158]
[1726531521755,3.2078,2299.2,2299.1,0.8291]
[1726531524242,3.2078,2299.2,2299.1,1.26403]
[1726531524461,3.2078,2299.2,2299.1,0.8291]
[1726531525044,3.2078,2299.2,2299.1,1.26403]
[1726531526351,3.2078,2299.2,2299.1,7.18363]
[1726531526952,3.2078,2299.2,2299.1,2.83403]
[1726531527960,3.2078,2299.2,2299.1,1.26403]
[1726531544178,4.04557,2299.4,2299.2,0.4349]
[1726531546478,0.83777,2299.4,2299.2,0.4349]
[1726531547082,4.04557,2299.4,2299.2,0.4349]
[1726531547976,0.83777,2299.4,2299.2,0.4349]
[1726531548380,4.04557,2299.4,2299.2,0.4349]
[1726531553485,3.6107,2299.4,2299.3,0.43489]
[1726531553795,3.2078,2299.4,2299.3,0.43489]
[1726531555403,3.2078,2299.4,2299.2,0.43489]
[1726531555595,3.2078,2299.4,2299.3,0.43489]
[1726531556097,3.2078,2299.4,2299.2,0.43489]
[1726531556997,3.2078,2299.4,2299.3,0.43489]
[1726531557192,0.4114,2299.5,2299.4,0.43487]
[1726531558493,0.4114,2299.5,2299.3,0.43487]
[1726531558898,3.2078,2299.4,2299.2,0.4349]
[1726531559195,4.04908,2299.4,2299.1,1.26402]
[1726531559797,3.6142,2299.4,2299.1,1.26401]
[1726531560803,4.04907,2299.4,2299.1,1.26401]
[1726531561700,4.44027,2299.4,2299.1,1.26401]
[1726531561902,4.0054,2299.4,2299.2,0.4349]
[1726531563905,3.2078,2299.4,2299.3,0.43489]
[1726531565903,3.2078,2299.4,2299.3,2.00489]
[1726531566400,3.2078,2299.4,2299.3,6.35369]
[1726531566997,3.2078,2299.4,2299.3,2.00489]
[1726531569697,3.2078,2299.4,2299.3,6.35369]
[1726531572007,4.5609,2299.8,2299.3,11.9188]
[1726531572312,4.5609,2299.8,2299.6,2.00482]
[1726531572610,4.5609,2299.8,2299.7,0.4025]
[1726531572809,0.4089,2299.8,2299.7,0.4025]
[1726531573204,1.9789,2299.8,2299.4,0.3997]
[1726531573408,1.57,2299.5,2299.3,0.4025]
[1726531573603,0.807,2299.4,2299.3,0.83739]
[1726531574803,0.807,2299.4,2299.3,0.4025]
[1726531575408,0.807,2299.4,2299.3,0.83739]
[1726531576513,0.807,2299.4,2299.3,0.4025]
[1726531576706,0.807,2299.4,2299.3,0.83739]
[1726531577104,0.3994,2299.4,2299.3,0.83739]
[1726531577612,0.3994,2299.4,2299.3,2.40739]
[1726531578317,3.64264,2299.6,2299.4,0.43487]
[1726531579015,3.64264,2299.6,2299.3,1.9725]
[1726531579217,3.64264,2299.6,2299.4,0.43487]
[1726531579513,3.2078,2299.6,2299.4,0.43487]
[1726531580217,2.00486,2299.5,2299.1,0.4205]
[1726531580511,2.3705,2299.4,2299.1,1.24391]
[1726531580712,3.2078,2299.3,2299.1,0.82342]
[1726531580918,3.606,2299.3,2299.1,0.82342]
[1726531581111,3.606,2299.3,2299.1,0.3885]
[1726531581413,3.606,2299.3,2299.1,0.82343]
[1726531582509,3.606,2299.3,2299.1,2.39343]
[1726531584618,3.606,2299.3,2299.1,1.9585]
[1726531584919,4.04089,2299.3,2299.1,1.9585]
[1726531585818,4.04089,2299.3,2298.8,0.5118]
[1726531585819,5.9196,2299.2,2298.8,0.101]
[1726531586024,5.21277,2298.9,2298.7,0.413]
[1726531586221,0.4013,2298.8,2298.7,0.413]
[1726531586720,0.4013,2298.8,2298.7,0.848]
[1726531590220,0.4013,2298.8,2298.7,0.413]
[1726531590727,1.2153,2298.8,2298.7,0.413]
[1726531592427,1.2153,2298.8,2298.7,0.848]
[1726531593127,0.4013,2298.8,2298.7,0.848]
[1726531603339,0.4013,2298.8,2298.7,0.413]
[1726531603529,0.4013,2298.8,2298.7,0.848]
[1726531614744,1.9713,2298.8,2298.7,0.848]
[1726531615648,0.4013,2298.8,2298.7,0.848]
[1726531620044,1.9713,2298.8,2298.7,0.848]
[1726531623855,0.4013,2298.8,2298.7,0.848]
[1726531626556,1.9713,2298.8,2298.7,0.848]
[1726531627451,3.2078,2299.0,2298.9,0.43496]
[1726531627648,3.64275,2299.0,2298.8,0.84377]
[1726531627843,1.57,2298.9,2298.8,0.84377]
[1726531631978,3.64275,2299.0,2298.8,0.84377]
[1726531632179,1.57,2298.9,2298.8,0.84377]
[1726531634079,3.2078,2299.0,2298.8,0.84377]
[1726531634284,5.21276,2299.0,2298.8,0.4088]
[1726531634483,0.43496,2298.9,2298.8,0.4088]
[1726531634787,0.4149,2298.9,2298.8,0.43498]
[1726531636484,0.4149,2298.9,2298.7,0.413]
[1726531636680,2.005,2298.8,2298.6,0.4125]
[1726531636882,3.2078,2298.7,2298.6,0.4125]
[1726531637389,3.2078,2298.7,2298.5,1.26523]
[1726531637586,1.57,2298.6,2298.5,1.26523]
[1726531640591,1.57,2298.6,2298.5,1.26524]
[1726531640786,1.9643,2298.6,2298.5,1.26524]
[1726531646587,1.9643,2298.6,2298.5,0.8302]
[1726531647195,1.9643,2298.6,2298.5,1.26524]
[1726531647799,2.39932,2298.6,2298.5,0.8302]
[1726531647994,1.9643,2298.6,2298.5,0.8302]
[1726531648497,1.9643,2298.6,2298.5,1.26524]
[1726531654001,0.3943,2298.6,2298.5,1.26524]
[1726531657097,3.64281,2298.7,2298.5,1.26524]
[1726531658105,0.43501,2298.7,2298.5,1.26524]
[1726531658504,5.996,2298.8,2298.6,1.57]
[1726531658505,3.2078,2298.8,2298.6,1.57]
[1726531658702,3.2078,2298.8,2298.7,2.3998]
[1726531659202,3.2078,2298.8,2298.7,0.8298]
[1726531666515,0.43496,2298.9,2298.7,0.8298]
[1726531666913,0.43496,2298.9,2298.8,0.84878]
[1726531668316,2.00496,2299.0,2298.8,0.84878]
[1726531668512,0.43496,2298.9,2298.8,0.84878]
[1726531669518,5.21276,2299.0,2298.8,0.84878]
[1726531670911,2.00496,2298.9,2298.7,0.82979]
[1726531671118,0.4118,2298.8,2298.7,0.82979]
[1726531671610,0.4118,2298.8,2298.6,0.422]
[1726531671611,7.1293,2298.8,2298.6,0.422]
[1726531671805,3.21389,2298.8,2298.6,0.422]
[1726531673415,1.64389,2298.8,2298.6,0.422]
[1726531673914,0.4118,2298.8,2298.6,0.422]
[1726531674104,5.21275,2299.0,2298.7,0.8507]
[1726531674309,5.59755,2299.0,2298.7,0.8507]
[1726531674816,4.02755,2299.0,2298.7,0.8507]
[1726531678516,0.81975,2299.0,2298.7,0.8507]
[1726531678716,4.02755,2299.0,2298.7,0.8507]
[1726531679420,5.59755,2299.0,2298.7,0.8507]